[Event "Early Titled Tuesday Blitz | February 8 2022"]
[White "Pantzar, Milton"]
[Black "Kiolbasa, Oliwia"]
[WhiteFideId "1721003"]
[BlackFideId "1154613"]
[WhiteElo "2340"]
[BlackElo "2190"]
[Result "1/2-1/2"]
[Round "07"]
[TimeControl "180+1"]
[Date "2022.02.08"]
[WhiteClock "0:00:05"]
[BlackClock "0:00:07"]

1. Nf3 {[%clk 0:03:00]}  d5 {[%clk 0:02:59]} 2. b3 {[%clk 0:02:56]}  Nf6 {[%clk 0:02:58]} 3. g3 {[%clk 0:02:54]}  e6 {[%clk 0:02:58]} 4. Bb2 {[%clk 0:02:54]}  c5 {[%clk 0:02:58]} 5. Bg2 {[%clk 0:02:54]}  Nc6 {[%clk 0:02:55]} 6. O-O {[%clk 0:02:53]}  Be7 {[%clk 0:02:50]} 7. Ne5 {[%clk 0:02:52]}  O-O {[%clk 0:02:43]} 8. Nxc6 {[%clk 0:02:51]}  bxc6 {[%clk 0:02:44]} 9. d3 {[%clk 0:02:49]}  Rb8 {[%clk 0:02:43]} 10. Nd2 {[%clk 0:02:48]}  a5 {[%clk 0:02:40]} 11. Be5 {[%clk 0:02:47]}  Bd6 {[%clk 0:02:39]} 12. Nf3 {[%clk 0:02:42]}  a4 {[%clk 0:02:36]} 13. Qd2 {[%clk 0:02:40]}  Bxe5 {[%clk 0:02:18]} 14. Nxe5 {[%clk 0:02:39]}  Qc7 {[%clk 0:02:18]} 15. f4 {[%clk 0:02:33]}  a3 {[%clk 0:02:16]} 16. h3 {[%clk 0:02:20]}  Ne8 {[%clk 0:02:10]} 17. e4 {[%clk 0:02:15]}  Nd6 {[%clk 0:01:59]} 18. Rae1 {[%clk 0:02:10]}  Ba6 {[%clk 0:01:41]} 19. c4 {[%clk 0:02:07]}  Rbd8 {[%clk 0:01:16]} 20. Qc3 {[%clk 0:01:57]}  Nb7 {[%clk 0:01:07]} 21. Qc1 {[%clk 0:01:44]}  f6 {[%clk 0:00:58]} 22. Nf3 {[%clk 0:01:44]}  Qa5 {[%clk 0:00:57]} 23. exd5 {[%clk 0:01:40]}  exd5 {[%clk 0:00:57]} 24. Nh4 {[%clk 0:01:40]}  Kf7 {[%clk 0:00:42]} 25. Nf5 {[%clk 0:01:33]}  Rfe8 {[%clk 0:00:32]} 26. cxd5 {[%clk 0:01:31]}  Bxd3 {[%clk 0:00:28]} 27. Rxe8 {[%clk 0:01:20]}  Rxe8 {[%clk 0:00:25]} 28. dxc6 {[%clk 0:01:03]}  Bxf1 {[%clk 0:00:20]} 29. Bxf1 {[%clk 0:00:32]}  c4 {[%clk 0:00:14]} 30. Bxc4+ {[%clk 0:00:28]}  Kf8 {[%clk 0:00:13]} 31. Ne3 {[%clk 0:00:07]}  Qc5 {[%clk 0:00:13]} 32. Kf2 {[%clk 0:00:07]}  Nd6 {[%clk 0:00:12]} 33. Qc3 {[%clk 0:00:03]}  Qxc6 {[%clk 0:00:11]} 34. Qb4 {[%clk 0:00:03]}  Re7 {[%clk 0:00:11]} 35. Nd5 {[%clk 0:00:02]}  Rb7 {[%clk 0:00:08]} 36. Qxa3 {[%clk 0:00:02]}  Ke8 {[%clk 0:00:08]} 37. Qa8+ {[%clk 0:00:02]}  Qc8 {[%clk 0:00:07]} 38. Qxc8+ {[%clk 0:00:02]}  Nxc8 {[%clk 0:00:08]} 39. f5 {[%clk 0:00:02]}  Nd6 {[%clk 0:00:07]} 40. Bd3 {[%clk 0:00:03]}  Kd7 {[%clk 0:00:07]} 41. g4 {[%clk 0:00:02]}  Kc6 {[%clk 0:00:07]} 42. Nf4 {[%clk 0:00:02]}  Kc5 {[%clk 0:00:08]} 43. Ke3 {[%clk 0:00:03]}  Kb4 {[%clk 0:00:07]} 44. Ne6 {[%clk 0:00:03]}  Kc3 {[%clk 0:00:07]} 45. a4 {[%clk 0:00:03]}  Rxb3 {[%clk 0:00:07]} 46. a5 {[%clk 0:00:03]}  Ra3 {[%clk 0:00:07]} 47. a6 {[%clk 0:00:03]}  Nc4+ {[%clk 0:00:07]} 48. Ke4 {[%clk 0:00:03]}  Nd2+ {[%clk 0:00:07]} 49. Ke3 {[%clk 0:00:04]}  Nc4+ {[%clk 0:00:06]} 50. Ke4 {[%clk 0:00:04]}  Rxa6 {[%clk 0:00:06]} 51. Bxc4 {[%clk 0:00:02]}  Kxc4 {[%clk 0:00:07]} 52. Nxg7 {[%clk 0:00:03]}  Ra3 {[%clk 0:00:08]} 53. h4 {[%clk 0:00:03]}  Ra7 {[%clk 0:00:07]} 54. Nh5 {[%clk 0:00:03]}  Re7+ {[%clk 0:00:07]} 55. Kf4 {[%clk 0:00:02]}  Rf7 {[%clk 0:00:07]} 56. Nxf6 {[%clk 0:00:02]}  Rxf6 {[%clk 0:00:08]} 57. g5 {[%clk 0:00:03]}  Rf8 {[%clk 0:00:07]} 58. Ke5 {[%clk 0:00:04]}  Kc5 {[%clk 0:00:07]} 59. Ke6 {[%clk 0:00:03]}  Re8+ {[%clk 0:00:06]} 60. Kf7 {[%clk 0:00:03]}  Re4 {[%clk 0:00:06]} 61. h5 {[%clk 0:00:03]}  Rh4 {[%clk 0:00:06]} 62. h6 {[%clk 0:00:03]}  Rh5 {[%clk 0:00:06]} 63. Kf6 {[%clk 0:00:03]}  Kd6 {[%clk 0:00:06]} 64. g6 {[%clk 0:00:03]}  Rxh6 {[%clk 0:00:07]} 65. Kg7 {[%clk 0:00:04]}  Rxg6+ {[%clk 0:00:06]} 66. fxg6 {[%clk 0:00:04]}  hxg6 {[%clk 0:00:07]} 67. Kxg6 {[%clk 0:00:05]} 1/2-1/2


[Site "https://www.chess.com"]

[Event "Early Titled Tuesday Blitz | February 8 2022"]
[White "Prieto Aranguren, Alain"]
[Black "Loay, Sameer"]
[WhiteFideId "2268906"]
[BlackFideId "8104239"]
[WhiteElo "2235"]
[BlackElo "2040"]
[Result "1-0"]
[Round "07"]
[TimeControl "180+1"]
[Date "2022.02.08"]
[WhiteClock "0:00:13"]
[BlackClock "0:00:26"]

1. e4 {[%clk 0:03:00]}  d6 {[%clk 0:02:58]} 2. f4 {[%clk 0:03:00]}  g6 {[%clk 0:02:59]} 3. Nf3 {[%clk 0:03:00]}  Bg7 {[%clk 0:02:59]} 4. Bc4 {[%clk 0:03:00]}  Nf6 {[%clk 0:03:00]} 5. d3 {[%clk 0:02:59]}  c6 {[%clk 0:03:00]} 6. O-O {[%clk 0:02:59]}  O-O {[%clk 0:03:00]} 7. Bb3 {[%clk 0:02:59]}  a5 {[%clk 0:03:00]} 8. a4 {[%clk 0:02:58]}  Na6 {[%clk 0:02:59]} 9. Qe1 {[%clk 0:02:58]}  Nc5 {[%clk 0:02:59]} 10. Ba2 {[%clk 0:02:58]}  Qc7 {[%clk 0:02:55]} 11. Qh4 {[%clk 0:02:58]}  b5 {[%clk 0:02:54]} 12. axb5 {[%clk 0:02:57]}  cxb5 {[%clk 0:02:55]} 13. e5 {[%clk 0:02:51]}  dxe5 {[%clk 0:02:50]} 14. fxe5 {[%clk 0:02:51]}  Ng4 {[%clk 0:02:46]} 15. Ng5 {[%clk 0:02:33]}  h6 {[%clk 0:02:46]} 16. Nxf7 {[%clk 0:02:24]}  Be6 {[%clk 0:02:36]} 17. Nxh6+ {[%clk 0:02:03]}  Bxh6 {[%clk 0:02:25]} 18. Bxh6 {[%clk 0:02:03]}  Rxf1+ {[%clk 0:02:25]} 19. Kxf1 {[%clk 0:02:02]}  Bxa2 {[%clk 0:02:16]} 20. Qxg4 {[%clk 0:01:55]}  Bf7 {[%clk 0:02:12]} 21. d4 {[%clk 0:01:52]}  Ne6 {[%clk 0:02:08]} 22. Nc3 {[%clk 0:01:43]}  b4 {[%clk 0:02:01]} 23. Ne2 {[%clk 0:01:37]}  Qxc2 {[%clk 0:01:58]} 24. d5 {[%clk 0:01:30]}  Qxb2 {[%clk 0:01:40]} 25. Rc1 {[%clk 0:01:26]}  Nd4 {[%clk 0:01:40]} 26. Nxd4 {[%clk 0:01:21]}  a4 {[%clk 0:01:33]} 27. e6 {[%clk 0:01:18]}  Be8 {[%clk 0:01:31]} 28. Qf4 {[%clk 0:01:11]}  Kh7 {[%clk 0:01:08]} 29. Bf8 {[%clk 0:01:06]}  Bb5+ {[%clk 0:00:55]} 30. Nxb5 {[%clk 0:01:05]}  Rxf8 {[%clk 0:00:56]} 31. Qxf8 {[%clk 0:00:58]}  Qxc1+ {[%clk 0:00:56]} 32. Kf2 {[%clk 0:00:58]}  Qc5+ {[%clk 0:00:56]} 33. Kg3 {[%clk 0:00:56]}  Qe3+ {[%clk 0:00:50]} 34. Kh4 {[%clk 0:00:50]}  g5+ {[%clk 0:00:36]} 35. Kh5 {[%clk 0:00:37]}  Qe2+ {[%clk 0:00:36]} 36. Qf3 {[%clk 0:00:32]}  Qxf3+ {[%clk 0:00:27]} 37. gxf3 {[%clk 0:00:32]}  a3 {[%clk 0:00:24]} 38. Nd4 {[%clk 0:00:24]}  Kg7 {[%clk 0:00:23]} 39. Kxg5 {[%clk 0:00:22]}  Kf8 {[%clk 0:00:23]} 40. Kf5 {[%clk 0:00:22]}  Kg7 {[%clk 0:00:23]} 41. Ke4 {[%clk 0:00:21]}  Kf6 {[%clk 0:00:23]} 42. h4 {[%clk 0:00:20]}  Kg6 {[%clk 0:00:23]} 43. Nb3 {[%clk 0:00:19]}  Kf6 {[%clk 0:00:23]} 44. f4 {[%clk 0:00:18]}  Kg6 {[%clk 0:00:24]} 45. f5+ {[%clk 0:00:18]}  Kf6 {[%clk 0:00:24]} 46. h5 {[%clk 0:00:18]}  Kg7 {[%clk 0:00:25]} 47. Ke5 {[%clk 0:00:18]}  a2 {[%clk 0:00:24]} 48. d6 {[%clk 0:00:16]}  Kf8 {[%clk 0:00:23]} 49. d7 {[%clk 0:00:16]}  Kg7 {[%clk 0:00:24]} 50. d8=Q {[%clk 0:00:16]}  a1=Q+ {[%clk 0:00:24]} 51. Nxa1 {[%clk 0:00:15]}  b3 {[%clk 0:00:25]} 52. Qxe7+ {[%clk 0:00:14]}  Kh6 {[%clk 0:00:25]} 53. Qf6+ {[%clk 0:00:14]}  Kxh5 {[%clk 0:00:26]} 54. Qg6+ {[%clk 0:00:14]}  Kh4 {[%clk 0:00:26]} 55. Nxb3 {[%clk 0:00:13]}  Kh3 {[%clk 0:00:26]} 56. Kf4 {[%clk 0:00:13]}  Kh2 {[%clk 0:00:26]} 57. Kf3 {[%clk 0:00:13]} 1-0


[Site "https://www.chess.com"]

[Event "Early Titled Tuesday Blitz | February 8 2022"]
[White "Ratnakaran, K."]
[Black "Gaehwiler, Gabriel"]
[WhiteFideId "5005507"]
[BlackFideId "1314530"]
[WhiteElo "2391"]
[BlackElo "2383"]
[Result "1-0"]
[Round "07"]
[TimeControl "180+1"]
[Date "2022.02.08"]
[WhiteClock "0:00:44"]
[BlackClock "0:00:02"]

1. e4 {[%clk 0:02:57]}  e5 {[%clk 0:02:59]} 2. Nf3 {[%clk 0:02:56]}  Nf6 {[%clk 0:02:59]} 3. Nxe5 {[%clk 0:02:56]}  d6 {[%clk 0:02:59]} 4. Nf3 {[%clk 0:02:56]}  Nxe4 {[%clk 0:02:59]} 5. Nc3 {[%clk 0:02:57]}  Nf6 {[%clk 0:02:59]} 6. d4 {[%clk 0:02:56]}  d5 {[%clk 0:02:59]} 7. Bd3 {[%clk 0:02:57]}  Be7 {[%clk 0:03:00]} 8. O-O {[%clk 0:02:56]}  O-O {[%clk 0:03:00]} 9. h3 {[%clk 0:02:57]}  c6 {[%clk 0:02:58]} 10. Re1 {[%clk 0:02:58]}  a5 {[%clk 0:02:55]} 11. Bg5 {[%clk 0:02:56]}  Na6 {[%clk 0:02:54]} 12. Qe2 {[%clk 0:02:55]}  Bd6 {[%clk 0:02:51]} 13. Ne5 {[%clk 0:02:55]}  Nc7 {[%clk 0:02:50]} 14. Qf3 {[%clk 0:02:54]}  Ne6 {[%clk 0:02:47]} 15. Be3 {[%clk 0:02:48]}  c5 {[%clk 0:02:36]} 16. Nb5 {[%clk 0:02:47]}  Bb8 {[%clk 0:02:27]} 17. c3 {[%clk 0:02:44]}  Nd7 {[%clk 0:01:32]} 18. Nxf7 {[%clk 0:02:18]}  Rxf7 {[%clk 0:01:21]} 19. Bxh7+ {[%clk 0:02:16]}  Kf8 {[%clk 0:01:18]} 20. Qxd5 {[%clk 0:02:10]}  Qh4 {[%clk 0:00:53]} 21. Qxe6 {[%clk 0:01:58]}  Qxh7 {[%clk 0:00:48]} 22. Bg5 {[%clk 0:01:55]}  Kg8 {[%clk 0:00:41]} 23. dxc5 {[%clk 0:01:46]}  Ra6 {[%clk 0:00:33]} 24. Nd6 {[%clk 0:01:40]}  Bxd6 {[%clk 0:00:22]} 25. cxd6 {[%clk 0:01:40]}  Rc6 {[%clk 0:00:23]} 26. Rad1 {[%clk 0:01:35]}  Nf8 {[%clk 0:00:22]} 27. Qd5 {[%clk 0:01:29]}  Bd7 {[%clk 0:00:19]} 28. f4 {[%clk 0:01:24]}  Qc2 {[%clk 0:00:17]} 29. Re7 {[%clk 0:01:20]}  Qf5 {[%clk 0:00:16]} 30. Re5 {[%clk 0:01:16]}  Qc2 {[%clk 0:00:15]} 31. Rd2 {[%clk 0:01:16]}  Qb1+ {[%clk 0:00:14]} 32. Kh2 {[%clk 0:01:16]}  Qg6 {[%clk 0:00:13]} 33. Qxa5 {[%clk 0:01:14]}  Ne6 {[%clk 0:00:11]} 34. Qd5 {[%clk 0:01:08]}  Rc5 {[%clk 0:00:05]} 35. Qe4 {[%clk 0:00:54]}  Rxe5 {[%clk 0:00:04]} 36. Qxg6 {[%clk 0:00:53]}  Ref5 {[%clk 0:00:04]} 37. Re2 {[%clk 0:00:51]}  Nf8 {[%clk 0:00:04]} 38. Qh5 {[%clk 0:00:50]}  g6 {[%clk 0:00:03]} 39. Qf3 {[%clk 0:00:47]}  Bc6 {[%clk 0:00:04]} 40. Qd3 {[%clk 0:00:47]}  Nd7 {[%clk 0:00:01]} 41. Re7 {[%clk 0:00:45]}  Kh7 {[%clk 0:00:02]} 42. Qxf5 {[%clk 0:00:44]} 1-0


[Site "https://www.chess.com"]

[Event "Early Titled Tuesday Blitz | February 8 2022"]
[White "Rostovtsev, Dmitry"]
[Black "Carre, Sylvain"]
[WhiteFideId "34278320"]
[BlackFideId "642118"]
[WhiteElo "2218"]
[BlackElo "2105"]
[Result "1-0"]
[Round "07"]
[TimeControl "180+1"]
[Date "2022.02.08"]
[WhiteClock "0:01:32"]
[BlackClock "0:00:04"]

1. e4 {[%clk 0:03:00]}  e5 {[%clk 0:02:54]} 2. Nf3 {[%clk 0:03:00]}  Nf6 {[%clk 0:02:51]} 3. d4 {[%clk 0:02:58]}  Nxe4 {[%clk 0:02:51]} 4. Bd3 {[%clk 0:02:57]}  d5 {[%clk 0:02:51]} 5. dxe5 {[%clk 0:02:57]}  Nc5 {[%clk 0:02:50]} 6. Be2 {[%clk 0:02:57]}  Be7 {[%clk 0:02:47]} 7. O-O {[%clk 0:02:57]}  Bg4 {[%clk 0:02:46]} 8. h3 {[%clk 0:02:56]}  Bxf3 {[%clk 0:02:46]} 9. Bxf3 {[%clk 0:02:57]}  c6 {[%clk 0:02:47]} 10. Qe2 {[%clk 0:02:56]}  O-O {[%clk 0:02:46]} 11. Rd1 {[%clk 0:02:56]}  Ne6 {[%clk 0:02:40]} 12. c4 {[%clk 0:02:54]}  d4 {[%clk 0:02:40]} 13. Nc3 {[%clk 0:02:54]}  Na6 {[%clk 0:02:27]} 14. Ne4 {[%clk 0:02:51]}  Nac5 {[%clk 0:02:27]} 15. Ng3 {[%clk 0:02:49]}  a5 {[%clk 0:02:20]} 16. Nf5 {[%clk 0:02:48]}  Re8 {[%clk 0:02:20]} 17. Be3 {[%clk 0:02:43]}  dxe3 {[%clk 0:02:10]} 18. Rxd8 {[%clk 0:02:43]}  exf2+ {[%clk 0:02:11]} 19. Qxf2 {[%clk 0:02:42]}  Bxd8 {[%clk 0:02:11]} 20. Qg3 {[%clk 0:02:41]}  g6 {[%clk 0:02:02]} 21. Rd1 {[%clk 0:02:40]}  Bg5 {[%clk 0:01:41]} 22. Nd6 {[%clk 0:02:38]}  Red8 {[%clk 0:01:38]} 23. Bg4 {[%clk 0:02:37]}  Be7 {[%clk 0:01:03]} 24. Qf2 {[%clk 0:02:35]}  Bxd6 {[%clk 0:01:00]} 25. exd6 {[%clk 0:02:34]}  Rd7 {[%clk 0:00:55]} 26. Qf6 {[%clk 0:02:25]}  Rad8 {[%clk 0:00:52]} 27. Bf3 {[%clk 0:02:24]}  Rxd6 {[%clk 0:00:42]} 28. Rxd6 {[%clk 0:02:24]}  Rxd6 {[%clk 0:00:43]} 29. h4 {[%clk 0:02:25]}  h5 {[%clk 0:00:40]} 30. g4 {[%clk 0:02:23]}  hxg4 {[%clk 0:00:33]} 31. Bxg4 {[%clk 0:02:24]}  Rd4 {[%clk 0:00:29]} 32. Be2 {[%clk 0:02:23]}  Rf4 {[%clk 0:00:26]} 33. Qc3 {[%clk 0:02:19]}  Rxh4 {[%clk 0:00:19]} 34. Qg3 {[%clk 0:02:19]}  Rf4 {[%clk 0:00:17]} 35. b3 {[%clk 0:02:18]}  Kg7 {[%clk 0:00:16]} 36. Qc3+ {[%clk 0:02:18]}  Rd4 {[%clk 0:00:15]} 37. a3 {[%clk 0:02:16]}  Kh6 {[%clk 0:00:12]} 38. b4 {[%clk 0:02:16]}  axb4 {[%clk 0:00:13]} 39. axb4 {[%clk 0:02:16]}  Ne4 {[%clk 0:00:14]} 40. Qh3+ {[%clk 0:02:16]}  Kg7 {[%clk 0:00:13]} 41. Qe3 {[%clk 0:02:17]}  f5 {[%clk 0:00:11]} 42. Qa3 {[%clk 0:02:14]}  Rd2 {[%clk 0:00:10]} 43. Bf3 {[%clk 0:02:10]}  N6g5 {[%clk 0:00:10]} 44. Bg2 {[%clk 0:02:09]}  Kh6 {[%clk 0:00:07]} 45. Qe3 {[%clk 0:02:06]}  Rd1+ {[%clk 0:00:07]} 46. Kh2 {[%clk 0:02:06]}  Rd2 {[%clk 0:00:07]} 47. Kg1 {[%clk 0:02:06]}  Rd1+ {[%clk 0:00:07]} 48. Kh2 {[%clk 0:02:06]}  Rd2 {[%clk 0:00:08]} 49. Qf4 {[%clk 0:02:06]}  Rf2 {[%clk 0:00:07]} 50. Qh4+ {[%clk 0:02:04]}  Kg7 {[%clk 0:00:08]} 51. Kg1 {[%clk 0:02:04]}  Rd2 {[%clk 0:00:07]} 52. Qf4 {[%clk 0:02:04]}  Kf6 {[%clk 0:00:07]} 53. Qb8 {[%clk 0:01:59]}  Rd1+ {[%clk 0:00:07]} 54. Kh2 {[%clk 0:01:59]}  Rd7 {[%clk 0:00:07]} 55. c5 {[%clk 0:01:55]}  Nf7 {[%clk 0:00:06]} 56. Bxe4 {[%clk 0:01:45]}  fxe4 {[%clk 0:00:07]} 57. Qf4+ {[%clk 0:01:46]}  Kg7 {[%clk 0:00:06]} 58. Qxe4 {[%clk 0:01:46]}  Rd2+ {[%clk 0:00:03]} 59. Kg1 {[%clk 0:01:46]}  Rd7 {[%clk 0:00:03]} 60. Qe8 {[%clk 0:01:45]}  Rd5 {[%clk 0:00:03]} 61. Qe7 {[%clk 0:01:44]}  Rg5+ {[%clk 0:00:01]} 62. Kh2 {[%clk 0:01:40]}  Rf5 {[%clk 0:00:02]} 63. Qxb7 {[%clk 0:01:39]}  Kh6 {[%clk 0:00:03]} 64. Qxc6 {[%clk 0:01:37]}  Ne5 {[%clk 0:00:04]} 65. Qe8 {[%clk 0:01:35]}  Kg5 {[%clk 0:00:04]} 66. c6 {[%clk 0:01:34]}  Ng4+ {[%clk 0:00:05]} 67. Kg2 {[%clk 0:01:33]}  Rf2+ {[%clk 0:00:04]} 68. Kg3 {[%clk 0:01:33]}  Rc2 {[%clk 0:00:03]} 69. Qe7+ {[%clk 0:01:31]}  Nf6 {[%clk 0:00:03]} 70. Qe5+ {[%clk 0:01:31]}  Kh6 {[%clk 0:00:04]} 71. Qxf6 {[%clk 0:01:32]}  Rc3+ {[%clk 0:00:04]} 1-0


[Site "https://www.chess.com"]

[Event "Early Titled Tuesday Blitz | February 8 2022"]
[White "Samaganova, Aleksandra"]
[Black "Berezin, Viktor"]
[WhiteFideId "13800221"]
[BlackFideId "14107872"]
[WhiteElo "1859"]
[BlackElo "2310"]
[Result "0-1"]
[Round "07"]
[TimeControl "180+1"]
[Date "2022.02.08"]
[WhiteClock "0:00:04"]
[BlackClock "0:00:02"]

1. e4 {[%clk 0:03:00]}  d5 {[%clk 0:02:57]} 2. exd5 {[%clk 0:02:57]}  Nf6 {[%clk 0:02:57]} 3. Nc3 {[%clk 0:02:57]}  g6 {[%clk 0:02:56]} 4. g3 {[%clk 0:02:55]}  Bg7 {[%clk 0:02:55]} 5. Bg2 {[%clk 0:02:55]}  O-O {[%clk 0:02:56]} 6. Nge2 {[%clk 0:02:55]}  c6 {[%clk 0:02:57]} 7. dxc6 {[%clk 0:02:50]}  Nxc6 {[%clk 0:02:58]} 8. O-O {[%clk 0:02:50]}  e5 {[%clk 0:02:52]} 9. d3 {[%clk 0:02:48]}  Be6 {[%clk 0:02:46]} 10. h3 {[%clk 0:02:45]}  Qd7 {[%clk 0:02:43]} 11. Kh2 {[%clk 0:02:45]}  Rad8 {[%clk 0:02:40]} 12. Bg5 {[%clk 0:02:40]}  h6 {[%clk 0:02:39]} 13. Bxf6 {[%clk 0:02:37]}  Bxf6 {[%clk 0:02:39]} 14. Ne4 {[%clk 0:02:38]}  Bg7 {[%clk 0:02:40]} 15. Nc5 {[%clk 0:02:21]}  Qe7 {[%clk 0:02:39]} 16. Nxe6 {[%clk 0:02:08]}  Qxe6 {[%clk 0:02:39]} 17. Nc3 {[%clk 0:02:04]}  Kh7 {[%clk 0:02:34]} 18. Re1 {[%clk 0:01:47]}  Qd7 {[%clk 0:02:15]} 19. Ne4 {[%clk 0:01:37]}  f5 {[%clk 0:02:07]} 20. Nc5 {[%clk 0:01:36]}  Qe7 {[%clk 0:02:07]} 21. Nb3 {[%clk 0:01:19]}  h5 {[%clk 0:01:59]} 22. Qe2 {[%clk 0:01:11]}  h4 {[%clk 0:01:57]} 23. Rad1 {[%clk 0:01:06]}  hxg3+ {[%clk 0:01:44]} 24. fxg3 {[%clk 0:01:06]}  Rfe8 {[%clk 0:01:39]} 25. c3 {[%clk 0:00:56]}  Qf7 {[%clk 0:01:33]} 26. Qf2 {[%clk 0:00:52]}  a6 {[%clk 0:01:16]} 27. Rd2 {[%clk 0:00:45]}  Re7 {[%clk 0:00:53]} 28. Qb6 {[%clk 0:00:29]}  Rde8 {[%clk 0:00:17]} 29. Rf2 {[%clk 0:00:21]}  Qe6 {[%clk 0:00:16]} 30. Nc5 {[%clk 0:00:19]}  Qc8 {[%clk 0:00:16]} 31. Nxa6 {[%clk 0:00:13]}  bxa6 {[%clk 0:00:15]} 32. Qxc6 {[%clk 0:00:14]}  Rc7 {[%clk 0:00:11]} 33. Qa4 {[%clk 0:00:11]}  Rd8 {[%clk 0:00:12]} 34. Qh4+ {[%clk 0:00:11]}  Kg8 {[%clk 0:00:10]} 35. Rfe2 {[%clk 0:00:11]}  Rxd3 {[%clk 0:00:08]} 36. Qg5 {[%clk 0:00:10]}  e4 {[%clk 0:00:09]} 37. Qxg6 {[%clk 0:00:09]}  Rc6 {[%clk 0:00:08]} 38. Qg5 {[%clk 0:00:08]}  Qe6 {[%clk 0:00:07]} 39. a3 {[%clk 0:00:07]}  Rc8 {[%clk 0:00:06]} 40. Qf4 {[%clk 0:00:08]}  Kf7 {[%clk 0:00:07]} 41. Re3 {[%clk 0:00:08]}  Be5 {[%clk 0:00:05]} 42. Qf2 {[%clk 0:00:06]}  Rcd8 {[%clk 0:00:05]} 43. Bxe4 {[%clk 0:00:04]}  Rxe3 {[%clk 0:00:04]} 44. Rxe3 {[%clk 0:00:03]}  Bf6 {[%clk 0:00:04]} 45. Bxf5 {[%clk 0:00:03]}  Qd6 {[%clk 0:00:04]} 46. Be4 {[%clk 0:00:03]}  Kg7 {[%clk 0:00:04]} 47. Bg2 {[%clk 0:00:04]}  Rf8 {[%clk 0:00:04]} 48. Rf3 {[%clk 0:00:04]}  Qe5 {[%clk 0:00:04]} 49. Rf4 {[%clk 0:00:05]}  Qe7 {[%clk 0:00:04]} 50. Rg4+ {[%clk 0:00:05]}  Kf7 {[%clk 0:00:05]} 51. Bd5+ {[%clk 0:00:05]}  Ke8 {[%clk 0:00:03]} 52. Re4 {[%clk 0:00:06]}  Be5 {[%clk 0:00:04]} 53. Qe3 {[%clk 0:00:05]}  Rf5 {[%clk 0:00:01]} 54. Bc6+ {[%clk 0:00:06]}  Kd8 {[%clk 0:00:01]} 55. Qd3+ {[%clk 0:00:06]}  Kc7 {[%clk 0:00:02]} 56. Ba4 {[%clk 0:00:06]}  Qc5 {[%clk 0:00:02]} 57. Re2 {[%clk 0:00:05]}  Rf2+ {[%clk 0:00:01]} 58. Kh1 {[%clk 0:00:05]}  Rf1+ {[%clk 0:00:02]} 59. Kg2 {[%clk 0:00:04]}  Qg1# {[%clk 0:00:02]} 0-1


[Site "https://www.chess.com"]

[Event "Early Titled Tuesday Blitz | February 8 2022"]
[White "Samarth, J Rao"]
[Black "Sarkar, Justin"]
[WhiteFideId "46652370"]
[BlackFideId "2010011"]
[WhiteElo "1514"]
[BlackElo "2038"]
[Result "0-1"]
[Round "07"]
[TimeControl "180+1"]
[Date "2022.02.08"]
[WhiteClock "0:00:07"]
[BlackClock "0:00:03"]

1. e4 {[%clk 0:03:00]}  e5 {[%clk 0:02:49]} 2. Nf3 {[%clk 0:02:59]}  Nc6 {[%clk 0:02:49]} 3. Bc4 {[%clk 0:03:00]}  Nf6 {[%clk 0:02:45]} 4. O-O {[%clk 0:02:52]}  Nxe4 {[%clk 0:02:42]} 5. d4 {[%clk 0:02:46]}  d5 {[%clk 0:02:34]} 6. Bb5 {[%clk 0:02:32]}  exd4 {[%clk 0:02:27]} 7. Nxd4 {[%clk 0:02:29]}  Bd7 {[%clk 0:02:26]} 8. Bxc6 {[%clk 0:02:26]}  bxc6 {[%clk 0:02:25]} 9. Re1 {[%clk 0:02:16]}  Be7 {[%clk 0:02:22]} 10. f3 {[%clk 0:02:11]}  Nd6 {[%clk 0:02:12]} 11. Qe2 {[%clk 0:02:10]}  c5 {[%clk 0:02:05]} 12. Nb3 {[%clk 0:02:10]}  c4 {[%clk 0:01:13]} 13. Nc5 {[%clk 0:01:50]}  Nf5 {[%clk 0:01:09]} 14. Nc3 {[%clk 0:01:11]}  O-O {[%clk 0:01:02]} 15. Nxd7 {[%clk 0:01:09]}  Qxd7 {[%clk 0:01:03]} 16. g4 {[%clk 0:01:08]}  Bc5+ {[%clk 0:00:57]} 17. Kh1 {[%clk 0:01:08]}  Rae8 {[%clk 0:00:50]} 18. Qf1 {[%clk 0:01:03]}  Rxe1 {[%clk 0:00:47]} 19. Qxe1 {[%clk 0:01:03]}  Re8 {[%clk 0:00:46]} 20. Qf1 {[%clk 0:01:01]}  Nd4 {[%clk 0:00:43]} 21. Bf4 {[%clk 0:00:48]}  Nxc2 {[%clk 0:00:37]} 22. Rd1 {[%clk 0:00:45]}  c6 {[%clk 0:00:20]} 23. Qxc4 {[%clk 0:00:39]}  Re1+ {[%clk 0:00:17]} 24. Rxe1 {[%clk 0:00:39]}  dxc4 {[%clk 0:00:16]} 25. Rd1 {[%clk 0:00:39]}  Bd4 {[%clk 0:00:08]} 26. Be5 {[%clk 0:00:31]}  c5 {[%clk 0:00:07]} 27. Ne4 {[%clk 0:00:28]}  h6 {[%clk 0:00:05]} 28. Nxc5 {[%clk 0:00:20]}  Qc6 {[%clk 0:00:05]} 29. Ne4 {[%clk 0:00:10]}  Bxe5 {[%clk 0:00:05]} 30. Rd8+ {[%clk 0:00:10]}  Kh7 {[%clk 0:00:05]} 31. Rd2 {[%clk 0:00:11]}  Ne3 {[%clk 0:00:05]} 32. g5 {[%clk 0:00:09]}  hxg5 {[%clk 0:00:04]} 33. Nxg5+ {[%clk 0:00:10]}  Kg6 {[%clk 0:00:04]} 34. Ne4 {[%clk 0:00:11]}  f5 {[%clk 0:00:04]} 35. Re2 {[%clk 0:00:06]}  fxe4 {[%clk 0:00:04]} 36. Rxe3 {[%clk 0:00:06]}  exf3 {[%clk 0:00:04]} 37. Kg1 {[%clk 0:00:05]}  Bd4 {[%clk 0:00:04]} 38. Kf2 {[%clk 0:00:05]}  Qe4 {[%clk 0:00:04]} 39. Kg3 {[%clk 0:00:04]}  Qxe3 {[%clk 0:00:04]} 40. h4 {[%clk 0:00:05]}  Be5+ {[%clk 0:00:04]} 41. Kg4 {[%clk 0:00:06]}  Qf4+ {[%clk 0:00:04]} 42. Kh3 {[%clk 0:00:07]}  Qg3# {[%clk 0:00:03]} 0-1


[Site "https://www.chess.com"]